Cogmind - Beta 14 @@@ ROGUE MODE // 2024.09.08 @ 09:15:20 Player: Cereal Killer Result: Destroyed by P-70 Sage with High-powered Shock Rifle Performance ------------- Evolutions (5) 2500 Regions Visited (12) 2400 Robots Destroyed (194) 970 Value Destroyed (8525) 8525 Prototype IDs (40) 800 Alien Tech Used (0) 0 Bonus (8168) 8168 TOTAL SCORE: 23363 Bonus ------- Triggered High Security 1000 High Alert Combat Kills 3476 Follower Combat Kills 2659 Network Hubs Disabled 400 Registered with UFD 300 Built Enhanced Grunts 300 Met R17 at Cetus 500 Friendly Fire -467 Cogmind --------- Core Integrity 0/1000 Matter 245/300 Energy 94/100 System Corruption 13% Temperature Cool (0) Movement Core (50) Location -5/Factory Parts ------- > --- POWER (2) -------- (None) > --- PROPULSION (3) --- (None) > --- UTILITY (8) ------ (None) > --- WEAPON (4) ------- (None) > --- INVENTORY (5) ---- Heavy Laser Phasing Sabre Peak State ------------ > --- POWER ------------ Hybrid Fission Core Quantum Reactor > --- PROPULSION ------- Armored Medium Treads Centrium Heavy Treads > --- UTILITY ---------- Advanced Heat Sink Advanced Heat Sink Large Storage Unit Experimental Targeting Computer Experimental Phase Shifter Centrium Medium Armor Plating Centrium Medium Armor Plating Experimental Thermal Shield > --- WEAPON ----------- Plasma Rifle Plasma Rifle Neutron Cannon Advanced KE Penetrator > --- INVENTORY -------- Quantum Reactor Quantum Reactor Improved Medium Treads Armored Medium Treads Compact Wheel Energy Well Advanced Variable Charge Gun Advanced Variable Charge Gun EMDS Neutron Cannon Neutron Cannon Junk Cannon Phasing Sabre [Rating: 127] Favorites ----------- Power Heavy Ion Engine Engine Heavy Ion Engine Power Core Hybrid Fission Core Reactor Quantum Reactor Propulsion Wheel Treads Armored Treads Leg Improved VSS Leg Wheel Wheel Utility Large Storage Unit Device Advanced Heat Sink Storage Large Storage Unit Processor Melee Analysis Suite Protection Centrium Medium Armor Plating Weapon Plasma Rifle Energy Gun Plasma Rifle Energy Cannon Advanced Beam Cannon Ballistic Gun Advanced KE Penetrator Ballistic Cannon Gauss Cannon Launcher Mini Grenade Launcher Special Weapon Junk Cannon Slashing Weapon Katana Build | -11 -10 -10 -9 -9 -9 -9 -6 -6 -6 -6 -6 -5 ------- Run | Yrd Mat Min Mat Sto Rec Scr Fac Ext Cet Arc Hub Fac Slots Evolved 10 | . . . 2 . . . 6 . . . . 2 Power 1 | . . . . . . . . . . . . 1 Propulsion 1 | . . . . . . . 1 . . . . . Utility 6 | . . . 1 . . . 4 . . . . 1 Weapon 2 | . . . 1 . . . 1 . . . . . Parts Attached 198 | 6 1 2 23 18 . 18 66 16 7 . 10 31 Power 24 | 1 . . 2 6 . 3 4 2 1 . 1 4 Engine 16 | 1 . . 2 6 . 2 2 2 . . . 1 Core 3 | . . . . . . 1 1 . . . . 1 Reactor 5 | . . . . . . . 1 . 1 . 1 2 Propulsion 46 | 2 . . 4 4 . 4 23 2 1 . 1 5 Treads 16 | . . . . . . . 8 2 1 . 1 4 Leg 15 | . . . . 2 . . 13 . . . . . Wheel 15 | 2 . . 4 2 . 4 2 . . . . 1 Hover . | . . . . . . . . . . . . . Flight . | . . . . . . . . . . . . . Utility 59 | 1 1 . 9 2 . 2 23 5 1 . 5 10 Device 21 | . . . . . . 1 13 1 . . 1 5 Storage 4 | 1 . . 1 1 . . . . . . . 1 Processor 6 | . . . 2 . . . 3 1 . . . . Hackware . | . . . . . . . . . . . . . Protection 28 | . 1 . 6 1 . 1 7 3 1 . 4 4 Artifact . | . . . . . . . . . . . . . Weapon 69 | 2 . 2 8 6 . 9 16 7 4 . 3 12 Energy Gun 26 | . . . 4 1 . . 9 6 2 . . 4 Energy Cannon 14 | . . . . 2 . 2 4 . . . 1 5 Ballistic Gun 13 | 2 . 1 . 3 . 2 2 . 2 . 1 . Ballistic Cannon 3 | . . . . . . 3 . . . . . . Launcher 2 | . . . 2 . . . . . . . . . Special Weapon 7 | . . 1 . . . 1 1 1 . . 1 2 Impact Weapon . | . . . . . . . . . . . . . Slashing Weapon 4 | . . . 2 . . 1 . . . . . 1 Piercing Weapon . | . . . . . . . . . . . . . Special Melee Weapon . | . . . . . . . . . . . . . Unidentified Prototypes 21 | . . . 1 6 . 1 5 1 4 . 1 2 Parts Lost 57 | . . . 3 3 . . 19 2 1 . 6 23 Power 7 | . . . 1 . . . 1 . . . 1 4 Propulsion 17 | . . . 1 2 . . 9 . . . 1 4 Utility 22 | . . . 1 1 . . 7 1 1 . 4 7 Weapon 11 | . . . . . . . 2 1 . . . 8 Highest Loss Streak 15 | . . . 3 2 . . 7 2 1 . 2 15 To Critical Strikes 1 | . . . . . . . . . . . . 1 Average Slot Usage (%) 95 | . 85 100 94 97 100 99 93 99 93 93 89 86 Engine 5 | . 14 14 10 10 11 6 2 6 4 . . . Core 1 | . . . . . . 4 1 . . . . 4 Reactor 1 | . . . . . . . 2 . 1 6 6 4 Treads 6 | . . . . . . . 5 20 13 13 12 11 Leg 1 | . . . . 5 . . 5 . . . . . Wheel 10 | . 28 28 20 15 22 22 6 . . . . . Device 7 | . . . . . . 3 14 13 6 6 5 17 Storage 8 | . 14 14 11 11 11 11 6 6 6 6 6 4 Processor 11 | . . . 7 11 11 11 15 18 13 13 13 8 Protection 9 | . . 14 13 11 11 7 5 6 19 20 19 8 Energy Gun 7 | . . . 11 4 . . 5 18 20 20 9 8 Energy Cannon 6 | . . . . 5 22 7 9 6 . . 2 5 Ballistic Gun 5 | . 28 23 11 12 . 5 1 . 4 6 9 3 Ballistic Cannon 1 | . . . . . . 8 . . . . . . Slashing Weapon 4 | . . . 4 11 11 11 5 . . . . . Peak Build Rating 127 | 6 7 7 22 24 25 35 73 70 98 98 108 127 Average Rating 55 | 3 6 7 17 22 24 29 65 67 91 97 99 110 On Entrance 43 | . 6 7 7 20 24 25 35 69 67 97 98 108 Naked Turns 22 | . . . . . . . . . . . . 22 Heaviest Build 94 | 13 16 16 31 41 41 47 90 70 80 80 91 94 Greatest Support 110 | 26 26 26 28 28 20 26 60 70 110 110 110 107 Greatest Overweight (x) 17 | . . . 1 9 2 2 17 1 1 . . 3 Average Overweight (x) 1 | . . . . 1 2 1 1 . . . . . Largest Inventory Capacity 15 | 8 8 8 10 15 15 15 15 15 15 15 15 15 Average Capacity 13 | 7 8 8 9 10 15 15 15 15 15 15 15 14 Most Carried 15 | 5 8 8 10 12 15 15 15 15 15 15 15 15 Average Carried 12 | 2 5 7 8 9 13 14 13 14 14 14 13 12 Final Capacity 15 | 8 8 8 10 15 15 15 15 15 15 15 15 5 Final Carried 15 | 2 7 8 10 12 15 15 15 14 13 15 13 2 Class Distribution -------------------- 27% | Commander-Mutant 18% | Mutant 14% | Scavenger-Tank 13% | Scavenger-Gunner 11% | Gunner 7% | Commander-Tank 3% | Tank Dominant Class ---------------- Mutant | -10/Materials Mutant | -10/Mines Mutant | -9/Materials Mutant | -9/Storage Commander-Mutant | -9/Recycling Commander-Mutant | -9/Scraptown Scavenger-Gunner | -6/Factory Gunner | -6/Extension Scavenger-Tank | -6/Cetus Commander-Tank | -6/Archives Scavenger-Tank | -6/Hub_04(d) Scavenger-Tank | -5/Factory Resources | -11 -10 -10 -9 -9 -9 -9 -6 -6 -6 -6 -6 -5 ----------- Run | Yrd Mat Min Mat Sto Rec Scr Fac Ext Cet Arc Hub Fac Matter Collected 3192 | 235 173 186 323 314 . 104 846 140 87 12 324 448 Remotely . | . . . . . . . . . . . . . Salvage Created 9691 | . 186 109 534 1065 309 . 2709 1580 74 161 1034 1930 Parts 417 | . 7 6 32 57 14 . 121 43 7 10 39 81 Haulers Intercepted 7 | . 2 . 2 3 . . . . . . . . Recyclers Shooed 5 | . . . . 1 . . 3 . . . . 1 Parts Field Recycled . | . . . . . . . . . . . . . Retrieved Matter . | . . . . . . . . . . . . . Parts Self-Destructed . | . . . . . . . . . . . . . Prevented . | . . . . . . . . . . . . . Kills | -11 -10 -10 -9 -9 -9 -9 -6 -6 -6 -6 -6 -5 ------- Run | Yrd Mat Min Mat Sto Rec Scr Fac Ext Cet Arc Hub Fac Combat Hostiles Destroyed 153 | . 2 2 12 14 3 . 43 22 1 2 20 32 Melee 33 | . . . 5 7 1 . 16 . . . . 4 Guns 54 | . 2 2 7 6 . . 8 7 . 2 15 5 Cannons 49 | . . . . 1 1 . 16 8 . . 4 19 Classes Destroyed 19 | . 2 . 4 4 . . 4 1 . . 2 2 Worker 13 | . . . . 3 . . 6 . . . 2 2 Builder 4 | . . . . 1 . . 1 . . . . 2 Tunneler 1 | . . . . . . . 1 . . . . . Hauler 7 | . 2 . 2 3 . . . . . . . . Recycler 6 | . . . . 2 2 . 1 1 . . . . Operator 3 | . . . . 1 . . 1 . . . . 1 Watcher 7 | . . . 1 1 . . 1 2 . . . 2 Swarmer 14 | . . . 3 1 . . 6 . . . 3 1 Saboteur 1 | . . . . . . . . . . . 1 . Grunt 77 | . 2 2 5 6 . . 22 12 . . 8 20 Brawler 3 | . . . . . . . . . . . 2 1 Duelist 5 | . . . 1 . . . 2 1 . . . 1 Protector 1 | . . . . . . . . . . . . 1 Sentry 28 | . . . 3 7 3 . 4 8 . 2 . 1 Demolisher 2 | . . . . . . . 1 . . . 1 . Hunter 6 | . . . . . . . 4 . . . . 2 Programmer 8 | . . . . . . . 4 . . . 2 2 Heavy 2 | . . . . . . . . . . . . 2 Behemoth 2 | . . . . . . . . 1 . . . 1 Cetus Guard 1 | . . . . . . . . . 1 . . . Lightning 3 | . . . . . . . . . . . 3 . Thug 1 | . . . . . . . . . . . 1 . Best Kill Streak 10 | . 3 2 4 5 2 . 8 5 1 1 5 10 Combat Bots Only 10 | . 2 2 4 4 2 . 7 4 1 1 5 10 Max Kills in Single Turn 2 | . 1 1 2 1 1 . 2 2 1 1 2 1 Gunslinging 1 | . . . . . . . . . . . 1 . Exploded . | . . . . . . . . . . . . . Melee 1 | . . . 1 1 1 . 1 . . . . 1 Uniques/NPCs Destroyed . | . . . . . . . . . . . . . Combat | -11 -10 -10 -9 -9 -9 -9 -6 -6 -6 -6 -6 -5 -------- Run | Yrd Mat Min Mat Sto Rec Scr Fac Ext Cet Arc Hub Fac Hostile Shots Fired 1288 | . 2 13 98 64 6 . 347 153 24 . 188 393 Missed 388 | . . 3 28 15 1 . 106 56 8 . 45 126 Damage Taken 16081 | . 20 122 1115 724 75 . 4016 1210 368 . 3326 5105 Core 2183 | . . 44 199 116 12 . 491 147 30 . 132 1012 Absorbed by Shields 446 | . . . . . . . 316 72 58 . . . Reduced by Siege Mode 164 | . . . . . . . . . . . 110 54 Ignored by Resistances 530 | . . . . . . . . 25 11 . 17 477 Regen/Repaired (Parts) 372 | . . . . 62 . 310 . . . . . . Core Remaining (%) 51 | 100 . 82 . . . 18 . . . . 5 . Volleys Fired 416 | . 15 38 30 34 4 . 85 45 6 3 60 96 Largest 4 | . 2 2 3 2 2 . 4 4 4 4 4 4 Hottest 330 | . 40 100 132 136 136 . 330 330 265 265 265 275 Shots Fired 1040 | . 30 49 72 63 8 . 236 179 21 12 151 219 Gun 656 | . 30 22 70 49 . . 106 135 19 12 103 110 Cannon 304 | . . . . 14 8 . 129 44 . . 28 81 Launcher 2 | . . . 2 . . . . . . . . . Special 78 | . . 27 . . . . 1 . 2 . 20 28 Kinetic 308 | . 30 22 46 43 . . 34 . 3 3 72 55 Thermal 650 | . . 27 24 20 8 . 174 179 16 9 59 134 Explosive 2 | . . . 2 . . . . . . . . . Electromagnetic 29 | . . . . . . . 27 . . . . 2 Impact 49 | . . . . . . . 1 . . . 20 28 Robot Hit Streak 35 | . 8 7 14 35 4 . 22 17 12 10 16 29 Robot Miss Streak 6 | . 3 6 4 2 1 . 4 3 2 1 3 2 Penetration Max 1 | . . . . . . . 1 . 1 . 1 1 Secondary Targets 6 | . . . 1 1 . . . 1 . . 3 . Max Gunslinging Chain 1 | . . . 1 1 . . . 1 . . 1 . Shots Hit Robots 834 | . 22 13 64 70 10 . 224 129 18 6 107 171 Core Hits 341 | . 7 5 25 28 4 . 93 45 8 6 46 74 Critical Kills 9 | . . . . . . . . 1 . . 5 3 Critical Parts Destroyed 25 | . . . . . . . 1 . 1 . 10 13 Critical Strikes 70 | . . . 3 3 . . 14 14 2 . 16 18 Burn 22 | . . . 2 . . . 5 13 . . 1 1 Meltdown 1 | . . . . . . . . 1 . . . . Destroy 24 | . . . . . . . . . 2 . 12 10 Smash 10 | . . . . . . . 1 . . . 3 6 Sever 13 | . . . 1 3 . . 8 . . . . 1 Melee Attacks 163 | . . . 21 35 4 . 92 . . . . 11 Impact . | . . . . . . . . . . . . . Slashing 163 | . . . 21 35 4 . 92 . . . . 11 Piercing . | . . . . . . . . . . . . . Sneak Attacks 21 | . . . . 9 3 . 9 . . . . . Combat Hostiles 2 | . . . . . 1 . 1 . . . . . Follow-up Attacks . | . . . . . . . . . . . . . Damage Inflicted 27448 | . 240 169 1160 1964 394 . 7069 3455 422 232 4809 7534 Guns 10819 | . 240 169 648 630 . . 1467 2397 422 232 2049 2565 Cannons 7230 | . . . . 41 134 . 2780 1058 . . 833 2384 Explosions 812 | . . . 75 . . . . . . . 320 417 Melee 5075 | . . . 437 1293 260 . 2734 . . . . 351 Ramming . | . . . . . . . . . . . . . Kinetic 4951 | . 240 169 343 566 . . 451 . 111 53 1574 1444 Thermal 12727 | . . . 305 105 134 . 3114 3455 311 179 1308 3816 Explosive 134 | . . . 75 . . . . . . . . 59 Electromagnetic 1049 | . . . . . . . 682 . . . 320 47 Impact 3512 | . . . . . . . 88 . . . 1607 1817 Slashing 5075 | . . . 437 1293 260 . 2734 . . . . 351 Piercing . | . . . . . . . . . . . . . Highest Corruption 18 | . . . . . . . 2 . . . 18 13 Average Corruption 3 | . . . . . . . 1 . . . 8 3 Corruption Purged 4 | . . . . . . . 4 . . . . . Corruption Blocked . | . . . . . . . . . . . . . Effects 19 | . . . . . . . 8 . . . 6 5 Message Errors 3 | . . . . . . . 2 . . . 1 . Matter Fused 2 | . . . . . . . . . . . 2 . Heat Flow Errors 2 | . . . . . . . 1 . . . . 1 Energy Discharges 2 | . . . . . . . 1 . . . . 1 Parts Rejected 2 | . . . . . . . . . . . 1 1 Parts Fused 1 | . . . . . . . 1 . . . . . Data Loss (major) 3 | . . . . . . . 1 . . . 1 1 Misfires 2 | . . . . . . . . . . . 1 1 Alerts 1 | . . . . . . . 1 . . . . . Weapon Failures 1 | . . . . . . . 1 . . . . . Overload Shots 4 | . . . . . . . . . . . . 4 Effects 1 | . . . . . . . . . . . . 1 Heat Surge 1 | . . . . . . . . . . . . 1 Overflow Damage 1622 | . . . 12 159 11 . 412 . . . 445 583 Projectiles 1173 | . . . . . . . 145 . . . 445 583 Explosions . | . . . . . . . . . . . . . Melee 449 | . . . 12 159 11 . 267 . . . . . Knockbacks 24 | . . . . . . . 1 . . . 12 11 Impact 21 | . . . . . . . 1 . . . 11 9 Kinetic . | . . . . . . . . . . . . . Secondary 3 | . . . . . . . . . . . 1 2 Self-Inflicted Damage 197 | . . . . . . . . . . . 197 . Shots 2 | . . . . . . . . . . . 2 . Rammed . | . . . . . . . . . . . . . Targets Rammed . | . . . . . . . . . . . . . Kicked . | . . . . . . . . . . . . . Crushed . | . . . . . . . . . . . . . Highest Temperature 421 | . 6 251 297 114 177 . 244 298 270 306 421 370 Average Temperature 98 | . 6 102 86 32 78 . 86 113 106 131 106 111 Received Heat Transfer 3417 | . 12 75 300 225 36 . 1094 270 17 . 676 712 Effects 2 | . . . 1 . . . . . . . 1 . Energy Bleed 1 | . . . 1 . . . . . . . . . Short Circuit 1 | . . . . . . . . . . . 1 . Siege Activations 13 | . . . . . . . . . 1 . 6 6 Total Turns 292 | . . . . . . . . . 7 . 138 147 Longest Duration 71 | . . . . . . . . . 7 . 51 71 Robots Corrupted 8 | . . . . . . . 2 . . . 1 5 Combat Hostiles 7 | . . . . . . . 2 . . . 1 4 Parts Fried 9 | . . . . . . . 2 . . . 3 4 Impact Corruptions 28 | . . . . . . . 2 . . . 10 16 Robots Melted 10 | . . . . . 1 . 1 7 1 . . . Combat Hostiles 10 | . . . . . 1 . 1 7 1 . . . Parts Melted 54 | . . . 1 . 2 . 13 35 . 1 . 2 Heat Transferred 17946 | . . . 851 222 222 . 5183 7478 687 324 1065 1914 Parts Sabotaged 2 | . . . . . . . . . . . . 2 Parts Stolen . | . . . . . . . . . . . . . Parts Stripped . | . . . . . . . . . . . . . Power Chain Reactions 2 | . . . . . . . . . . . . 2 Alert | -11 -10 -10 -9 -9 -9 -9 -6 -6 -6 -6 -6 -5 ------- Run | Yrd Mat Min Mat Sto Rec Scr Fac Ext Cet Arc Hub Fac Peak Influence 2188 | . 89 115 544 937 460 . 849 1400 877 522 1926 2188 Initial 1100 | . . 34 22 163 321 . . 415 720 329 182 1100 Average 630 | . 35 82 319 464 322 . 380 777 832 486 1012 1515 Maximum Alert Level 5 | . . . 2 3 2 . 3 4 3 2 5 5 Low Security (%) 19 | 100 100 100 16 14 . . 28 . . . 15 . Level 1 19 | . . . 49 42 87 . 19 . . 9 2 . Level 2 25 | . . . 34 21 12 . 42 50 . 90 23 . Level 3 17 | . . . . 22 . . 10 28 99 . 14 . Level 4 12 | . . . . . . . . 19 . . 28 64 Level 5 2 | . . . . . . . . . . . 2 17 High Security 3 | . . . . . . . . . . . 13 17 Max Security . | . . . . . . . . . . . . . Squads Dispatched 53 | . 1 . 3 6 . . 14 5 . . 10 14 Investigation 16 | . . . 2 2 . . 6 3 . . 2 1 Extermination 5 | . . . . . . . 2 . . . 2 1 Reinforcement 12 | . 1 . 1 1 . . 1 1 . . 3 4 Assault 12 | . . . . . . . 1 1 . . 2 8 Garrison 8 | . . . . 3 . . 4 . . . 1 . Intercept . | . . . . . . . . . . . . . Searches Triggered . | . . . . . . . . . . . . . Construction Impeded 2 | . . . . . . . 1 . . . . 1 Haulers Reinforced . | . . . . . . . . . . . . . Active Scanning Responses . | . . . . . . . . . . . . . Cargo Convoy Interrupts 1 | . . . . . . . . . . . . 1 Stealth | -11 -10 -10 -9 -9 -9 -9 -6 -6 -6 -6 -6 -5 --------- Run | Yrd Mat Min Mat Sto Rec Scr Fac Ext Cet Arc Hub Fac Distress Signals 12 | . . . 3 2 . . 1 . 2 . 4 . Communications Jammed . | . . . . . . . . . . . . . Distress Signals . | . . . . . . . . . . . . . Times Spotted 320 | . 4 5 21 23 3 . 72 37 11 3 51 90 Peak Tracking Total 29 | . 2 3 7 5 2 . 6 7 5 2 10 29 Tactical Retreats 25 | . . . 2 3 . . 7 2 . . 1 10 Traps | -11 -10 -10 -9 -9 -9 -9 -6 -6 -6 -6 -6 -5 ------- Run | Yrd Mat Min Mat Sto Rec Scr Fac Ext Cet Arc Hub Fac Traps Triggered 12 | . . . 1 2 . . 7 1 . . 1 . Indirectly . | . . . . . . . . . . . . . Trap Hack Attempts . | . . . . . . . . . . . . . Triggered . | . . . . . . . . . . . . . Disarmed . | . . . . . . . . . . . . . Reprogrammed . | . . . . . . . . . . . . . Reused . | . . . . . . . . . . . . . Traps Extracted . | . . . . . . . . . . . . . Installed . | . . . . . . . . . . . . . Triggered 1 | . . . . . . . 1 . . . . . Most Traps Carried 1 | . . . . . . 1 1 1 1 . . . Machines | -11 -10 -10 -9 -9 -9 -9 -6 -6 -6 -6 -6 -5 ---------- Run | Yrd Mat Min Mat Sto Rec Scr Fac Ext Cet Arc Hub Fac Machines Disabled 52 | . . . . 5 . . 4 4 1 2 18 18 Max in Single Turn 10 | . . . . 1 . . 2 1 . 1 7 10 Garrison Access 2 | . . . . . . . 2 . . . . . Network Hub 2 | . . . . . . . . . . . 2 . Energy Cycler 1 | . . . . . . . . 1 . . . . Machines Repaired . | . . . . . . . . . . . . . Machines Dismantled . | . . . . . . . . . . . . . Machines Sabotaged . | . . . . . . . . . . . . . Overloaded Fab Kills . | . . . . . . . . . . . . . Hacking | -11 -10 -10 -9 -9 -9 -9 -6 -6 -6 -6 -6 -5 --------- Run | Yrd Mat Min Mat Sto Rec Scr Fac Ext Cet Arc Hub Fac Machines Accessed 72 | . 3 . 5 11 7 2 17 15 3 . 3 6 Terminals 51 | . 3 . 4 10 6 . 7 13 3 . 3 2 Fabricators 4 | . . . . . . . 3 . . . . 1 Repair Stations 3 | . . . . 1 . . . 1 . . . 1 Recycling Units 4 | . . . . . 1 . 2 1 . . . . Scanalyzers 6 | . . . 1 . . . 3 . . . . 2 Garrison Access 2 | . . . . . . . 2 . . . . . Total Hacks 218 | . 10 . 23 32 20 17 34 34 5 . 16 27 Successful 106 | . 4 . 18 11 9 17 14 11 2 . 8 12 Failed 112 | . 6 . 5 21 11 . 20 23 3 . 8 15 Catastrophic 26 | . 1 . 1 6 2 . 4 5 3 . 1 3 Database Lockouts . | . . . . . . . . . . . . . Manual 68 | . 6 . 10 9 4 . 12 7 1 . 13 6 Terminals 146 | . 10 . 9 30 19 . 11 31 5 . 16 15 Fabricators 11 | . . . . . . . 10 . . . . 1 Repair Stations 8 | . . . . 2 . . . 2 . . . 4 Recycling Units 4 | . . . . . 1 . 2 1 . . . . Scanalyzers 28 | . . . 14 . . . 7 . . . . 7 Garrison Access 4 | . . . . . . . 4 . . . . . Terminal Hacks 54 | . 2 . 2 7 7 17 3 8 2 . 4 2 Record 18 | . . . . . . 16 . . 2 . . . Part Schematic 6 | . . . . 3 1 . . 1 . . . 1 Robot Schematic 1 | . . . . . 1 . . . . . . . Robot Analysis 7 | . 1 . 1 1 1 . 1 . . . 2 . Prototype ID Bank 3 | . . . . 1 2 . . . . . . . Open Door 8 | . . . . 1 . . 1 6 . . . . Branch Access Points 1 | . . . 1 . . . . . . . . . Emergency Access Points 2 | . 1 . . . . . . . . . 1 . Locate Traps 3 | . . . . . . . 1 1 . . . 1 Hauler Manifests 1 | . . . . . 1 . . . . . . . Zone Layout 3 | . . . . 1 1 . . . . . 1 . Derelict Proto ID Bank 1 | . . . . . . 1 . . . . . . Fabricator Hacks 3 | . . . . . . . 2 . . . . 1 Network Status 1 | . . . . . . . 1 . . . . . Load Schematic 1 | . . . . . . . 1 . . . . . Build 1 | . . . . . . . . . . . . 1 Repair Station Hacks 4 | . . . . 2 . . . . . . . 2 Scan Component 2 | . . . . 1 . . . . . . . 1 Repair 2 | . . . . 1 . . . . . . . 1 Recycling Unit Hacks . | . . . . . . . . . . . . . Scanalyzer 19 | . . . 12 . . . 3 . . . . 4 Insert Component 10 | . . . 5 . . . 2 . . . . 3 Analyze 9 | . . . 7 . . . 1 . . . . 1 Garrison Access Hacks 2 | . . . . . . . 2 . . . . . Seal Access 2 | . . . . . . . 2 . . . . . Unauthorized Hacks 23 | . 2 . 4 2 1 . 4 3 . . 4 3 Terminals 18 | . 2 . 3 2 1 . 1 2 . . 4 3 Track 2 | . . . . . . . . . . . 1 1 Botnet 14 | . 2 . 2 2 1 . 1 2 . . 2 2 Disrupt 2 | . . . 1 . . . . . . . 1 . Fabricators 1 | . . . . . . . 1 . . . . . Fabnet 1 | . . . . . . . 1 . . . . . Repair Stations 3 | . . . . . . . 2 1 . . . . Recycling Units . | . . . . . . . . . . . . . Fedlink 3 | . . . . . . . 2 1 . . . . Scanalyzers 1 | . . . 1 . . . . . . . . . Extract 1 | . . . 1 . . . . . . . . . Garrison Access . | . . . . . . . . . . . . . Data Cores Recovered 2 | . . . . 1 . . . . . . . 1 Used 2 | . . . . 1 . . . . . . . 1 Hacking Detections 58 | . 3 . 4 9 7 . 12 11 4 . 3 5 Full Trace Events 13 | . 1 . . 5 1 . 3 2 . . . 1 Feedback Events . | . . . . . . . . . . . . . Feedback Blocked . | . . . . . . . . . . . . . Robot Schematics Acquired 1 | . . . . . 1 . . . . . . . Robots Built . | . . . . . . . . . . . . . Authchips . | . . . . . . . . . . . . . Time . | . . . . . . . . . . . . . Total Robot Build Rating . | . . . . . . . . . . . . . Part Schematics Acquired 14 | . . . 6 3 1 . 1 1 . . . 2 Parts Built . | . . . . . . . . . . . . . Authchips . | . . . . . . . . . . . . . Time 46 | . . . . . . . . . . . . 46 Total Part Build Rating . | . . . . . . . . . . . . . Parts Repaired 1 | . . . . 1 . . . . . . . . Time 159 | . . . . 51 . . . . . . . 108 Parts Recycled . | . . . . . . . . . . . . . Recycled Matter . | . . . . . . . . . . . . . Retrieved Matter . | . . . . . . . . . . . . . Retrieved Components . | . . . . . . . . . . . . . Parts Scanalyzed 9 | . . . 5 . . . 2 . . . . 2 Part Schematics Acquired 7 | . . . 5 . . . 1 . . . . 1 Parts Damaged 1 | . . . . . . . . . . . . 1 Bothacking | -11 -10 -10 -9 -9 -9 -9 -6 -6 -6 -6 -6 -5 ------------ Run | Yrd Mat Min Mat Sto Rec Scr Fac Ext Cet Arc Hub Fac Used RIF Installer . | . . . . . . . . . . . . . Robots Hacked 1 | . . . . . . . . . . . . 1 Non-combat . | . . . . . . . . . . . . . Combat 1 | . . . . . . . . . . . . 1 Robot Hacks Applied . | . . . . . . . . . . . . . Relay Couplers Released 4 | . . . . . . . 4 . . . . . Programmers 4 | . . . . . . . 4 . . . . . Fabnet Peak Effective % 3 | . . . . . . . . . . . . 3 Autooverrided 1 | . . . . . . . . . . . . 1 Robots Rewired 14 | . . . . . . . . 14 . . . . Allies Hacked . | . . . . . . . . . . . . . Hacks Repelled . | . . . . . . . . . . . . . Allies | -11 -10 -10 -9 -9 -9 -9 -6 -6 -6 -6 -6 -5 -------- Run | Yrd Mat Min Mat Sto Rec Scr Fac Ext Cet Arc Hub Fac Total Allies 44 | . . 3 . 10 . . . 24 6 . . 1 Largest Group 14 | . . 3 3 10 6 6 6 10 14 13 12 1 Highest-Rated Group 875 | . . 40 40 88 56 56 56 431 875 854 686 30 Highest-Rated Ally 159 | . . 16 16 16 16 16 16 159 159 159 96 30 Total Orders . | . . . . . . . . . . . . . Ally Attacks 573 | . . 10 30 74 12 . 30 180 58 25 151 3 Total Damage 10299 | . . 132 188 607 105 . 241 2764 1537 613 4036 76 Kills 79 | . . 3 5 10 . . 3 23 10 2 23 . Allies Corrupted . | . . . . . . . . . . . . . Allies Melted 1 | . . . . . . . . . . . 1 . Intel | -11 -10 -10 -9 -9 -9 -9 -6 -6 -6 -6 -6 -5 ------- Run | Yrd Mat Min Mat Sto Rec Scr Fac Ext Cet Arc Hub Fac Robot Analysis Total 7 | . 1 . 1 1 1 . 1 . . . 2 . Derelict Logs Recovered 2 | . . 2 . . . . . . . . . . Drone Launches . | . . . . . . . . . . . . . Drone Recoveries . | . . . . . . . . . . . . . Exploration | -11 -10 -10 -9 -9 -9 -9 -6 -6 -6 -6 -6 -5 ------------- Run | Yrd Mat Min Mat Sto Rec Scr Fac Ext Cet Arc Hub Fac Turns Passed 10553 | 42 203 488 476 1214 630 1612 2207 1220 613 113 624 1111 Spaces Moved 5857 | 35 168 336 251 724 511 1422 970 465 261 61 240 413 Core 54 | 7 . . . 2 . . 2 . . . . 43 Treads 1612 | . . . . . . . 216 465 261 61 240 369 Legs 401 | . . . . 124 . . 277 . . . . . Wheels 3790 | 28 168 336 251 598 511 1422 475 . . . . 1 Hover . | . . . . . . . . . . . . . Flight . | . . . . . . . . . . . . . Fastest Speed 50 | 50 90 90 90 95 110 95 90 166 160 160 160 50 Average Speed 131 | 82 90 90 103 125 110 109 156 181 161 160 160 162 Slowest Speed 900 | 90 90 90 110 500 110 115 900 250 246 160 165 250 Overloaded Moves . | . . . . . . . . . . . . . Propulsion Burnouts . | . . . . . . . . . . . . . Robots Hopped . | . . . . . . . . . . . . . Cave-ins Triggered . | . . . . . . . . . . . . . Exploration Rate (%) 53 | 4 37 72 33 89 94 82 31 70 69 65 39 14 Regions Visited 12 Branch Regions 8 Pre-discovered Areas 4 | . . 1 . . . 3 . . . . . . Known Exits Taken 2 | . . . 1 . . . . . . . 1 . Unknown Exits Taken 10 | 1 1 1 . 1 1 1 1 1 1 1 . . Scrap Searched 3 | . . 1 . . . 2 . . . . . . Spaces Dug 18 | . . 8 . . . . 6 . . . . 4 Terrain Destroyed 513 | . . 8 13 . . . 36 28 . 3 331 94 Melee 6 | . . . . . . . 6 . . . . . Projectile 93 | . . 8 . . . . 14 8 . 3 26 34 AOE 414 | . . . 13 . . . 16 20 . . 305 60 Terrain Rammed . | . . . . . . . . . . . . . Walls Destroyed . | . . . . . . . . . . . . . Machines Disabled . | . . . . . . . . . . . . . Actions | -11 -10 -10 -9 -9 -9 -9 -6 -6 -6 -6 -6 -5 --------- Run | Yrd Mat Min Mat Sto Rec Scr Fac Ext Cet Arc Hub Fac Total 7634 | 48 192 420 380 918 565 1487 1345 732 445 69 353 680 Wait 579 | . 3 42 23 79 42 15 46 49 135 4 33 108 Move 5845 | 34 167 335 250 723 510 1421 969 464 260 60 239 413 Hop . | . . . . . . . . . . . . . Pick Up 150 | 8 6 2 20 13 4 10 44 6 17 2 6 12 Fast Attach 43 | . . . 2 6 . 7 16 6 3 . 1 2 Attach 90 | 6 1 . 7 5 . 1 34 4 1 . 8 23 Detach 13 | . . . . 1 . 3 2 1 1 . 2 3 Swap 65 | . . 2 14 7 . 10 16 6 3 . 1 6 Drop 122 | . . 1 13 15 1 20 29 15 19 . 3 6 Fire 416 | . 15 38 30 34 4 . 85 45 6 3 60 96 Melee 163 | . . . 21 35 4 . 92 . . . . 11 Ram . | . . . . . . . . . . . . . Kick . | . . . . . . . . . . . . . Crush . | . . . . . . . . . . . . . Escape Stasis 2 | . . . . . . . . 2 . . . . Rewire 146 | . . . . . . . 12 134 . . . . Trap . | . . . . . . . . . . . . . Miscellaneous . | . . . . . . . . . . . . . Route ------- -11/Scrapyard -10/Materials (discovered 2 exits: [*Min x2]) -10/Mines (discovered 2 exits: *Mat x2) -9/Materials (discovered 3 exits: *Min x2 / *Sto) -9/Storage (discovered 2 exits: [*Mat] / *Rec) -9/Recycling (discovered 2 exits: [*Fac] / *Scr) -9/Scraptown (discovered 2 exits: *Fac x2) -6/Factory (discovered 5 exits: *Fac / [*Low x2] / *Ext x2) -6/Extension (discovered 2 exits: *Fac / *Cet) -6/Cetus (discovered 2 exits: *Fac / [*Arc]) -6/Archives -6/Hub_04(d) (discovered 3 exits: *Fac x3) -5/Factory History --------- Turn | Location | Event 10 | -11/Scrapyard | Discovered new exit (range 16) 43 | -11/Scrapyard | Entered Materials 43 | -10/Materials | Discovered new exit (range 15) 206 | -10/Materials | Discovered new exit (range 13) 246 | -10/Materials | Entered Mines 253 | -10/Mines | Assisted by bots powering up and referring to "LRC-V3" 300 | -10/Mines | Build established: Mutant 317 | -10/Mines | Discovered new exit (range 14) 430 | -10/Mines | Received a Rocket Launcher from a helpful Derelict 706 | -10/Mines | Discovered new exit (range 7) 734 | -10/Mines | Entered Materials 734 | -9/Materials | Accompanied by 3 allies 734 | -9/Materials | Evolved 2 slots: Utility x1, Weapon x1 735 | -9/Materials | Identified exit to Mines 982 | -9/Materials | Identified exit to Storage 1055 | -9/Materials | Lost 3 parts (1p1n1u) 1210 | -9/Materials | Entered Storage 1420 | -9/Storage | Repaired Imp. Medium Laser 1507 | -9/Storage | Discovered new exit (range 15) 1579 | -9/Storage | Core integrity fell below 50% 1872 | -9/Storage | Assisted by bots powering up and referring to "LRC-V3" 1894 | -9/Storage | Garrison activated, responded to threat 2178 | -9/Storage | Build established: Commander-Mutant 2409 | -9/Storage | Used back door to open Recycling access 2409 | -9/Storage | Discovered new exit (range 4) 2424 | -9/Storage | Entered Recycling 2424 | -9/Recycling | Accompanied by 6 allies 2636 | -9/Recycling | Discovered new exit (range 15) 2787 | -9/Recycling | Core integrity fell below 20% 3005 | -9/Recycling | Scanned before Scraplab entrance 3025 | -9/Recycling | Entered Scraplab 3049 | -9/Recycling | Discovered new exit (range 3) 3054 | -9/Recycling | Entered Scraptown 3054 | -9/Scraptown | Accompanied by 6 allies 3092 | -9/Scraptown | Visited Cave Peace 3129 | -9/Scraptown | Visited The Evicted 3157 | -9/Scraptown | Visited CR-KLE's Repair Center 3168 | -9/Scraptown | Visited Fellowship of the Rings 3181 | -9/Scraptown | Visited Symbiants 3191 | -9/Scraptown | Visited SPCMW 3226 | -9/Scraptown | Visited UFD Registry 3226 | -9/Scraptown | Registered with UFD as "Arcslasher" 3252 | -9/Scraptown | Visited Comm Corps 3280 | -9/Scraptown | Visited Junk Repository 3316 | -9/Scraptown | Visited Botcube Research 3325 | -9/Scraptown | Found Botcube 3348 | -9/Scraptown | Visited Junk Cannon Lab 3354 | -9/Scraptown | Found Prototype Special Weapon 3358 | -9/Scraptown | Identified Junk Cannon 3385 | -9/Scraptown | Visited Chapter 10 3401 | -9/Scraptown | Visited Scrap Suit Storage 3409 | -9/Scraptown | Found Scrap Suit 3449 | -9/Scraptown | Visited Infowarlord's Domain 3465 | -9/Scraptown | Visited Cartography Club 3492 | -9/Scraptown | Found Surveybot 17 Chip 3611 | -9/Scraptown | Learned location of Storage (-9) 3611 | -9/Scraptown | Learned location of Proximity Caves (-5) 3611 | -9/Scraptown | Learned location of Hub_04(d) (-6) 3611 | -9/Scraptown | Learned 8 Materials zone layouts 3611 | -9/Scraptown | Learned 8 Access zone layouts 3611 | -9/Scraptown | Learned 4 Recycling zone layouts 3611 | -9/Scraptown | Learned 12 Lower Caves zone layouts 3611 | -9/Scraptown | Learned 20 Lower Caves zone layouts 3611 | -9/Scraptown | Learned 8 Upper Caves zone layouts 3611 | -9/Scraptown | Learned 20 Proximity Caves zone layouts 3611 | -9/Scraptown | Learned location of 1 exit from Upper Caves 3611 | -9/Scraptown | Learned location of 3 exits from Upper Caves 3661 | -9/Scraptown | Found Exp. Terrain Scanner 3682 | -9/Scraptown | Visited Research Penetration Think Tank 3714 | -9/Scraptown | Visited Science Guys 3754 | -9/Scraptown | Visited Curators Association 3842 | -9/Scraptown | Heard Great Nut preacher, LISTEN AND RECITE! 4265 | -9/Scraptown | Discovered new exit (range 13) 4462 | -9/Scraptown | Discovered new exit (range 5) 4609 | -9/Scraptown | CR-KLE repaired 7 parts 4666 | -9/Scraptown | Entered Factory 4666 | -6/Factory | Accompanied by 6 allies 4666 | -6/Factory | Evolved 6 slots: Propulsion x1, Utility x4, Weapon x1 4715 | -6/Factory | Garrison activated, responded to threat 4759 | -6/Factory | Lost 4 allies 4789 | -6/Factory | Found Prototype Processor 4790 | -6/Factory | Identified Exp. Targeting Computer 4832 | -6/Factory | Discovered new exit (range 28) 4995 | -6/Factory | Found Hvy. Reactive Plating 5118 | -6/Factory | Discovered new exit (range 30) 5436 | -6/Factory | Destroyed 7 combat bots 5498 | -6/Factory | Lost 7 parts (3n2u2w) 5593 | -6/Factory | Garrison activated, responded to threat 5720 | -6/Factory | Lost 7 parts (1p3n3u) 5853 | -6/Factory | Lost 4 parts (2n2u) 5878 | -6/Factory | Build established: Scavenger-Gunner 5959 | -6/Factory | Discovered new exit (range 10) 6093 | -6/Factory | Identified exit to Factory 6465 | -6/Factory | Discovered new exit (range 6) 6509 | -6/Factory | Core integrity fell below 50% 6766 | -6/Factory | First assault squad dispatched 6805 | -6/Factory | Build established: Gunner 6853 | -6/Factory | Discovered new exit (range 10) 6873 | -6/Factory | Entered Extension 6876 | -6/Extension | Disrupted transfer network 7309 | -6/Extension | Lost 6 allies 7351 | -6/Extension | Rescued a captive Derelict 7383 | -6/Extension | Rescued a captive Derelict 7445 | -6/Extension | Rescued a captive Derelict 7495 | -6/Extension | Spotted B-75 Beast 7504 | -6/Extension | Rescued a captive Derelict 7505 | -6/Extension | Rescued a captive Derelict 7514 | -6/Extension | Destroyed B-75 Beast 7519 | -6/Extension | Spotted B-75 Beast 7535 | -6/Extension | Allies destroyed B-75 Beast 7573 | -6/Extension | First assault squad dispatched 7584 | -6/Extension | Rescued a captive Derelict 7615 | -6/Extension | Rescued a captive Derelict 7656 | -6/Extension | Energy Cycler disabled 7656 | -6/Extension | Rescued a captive Derelict 7656 | -6/Extension | Rescued a captive Derelict 7657 | -6/Extension | Rescued a captive Derelict 7657 | -6/Extension | Rescued a captive Derelict 7662 | -6/Extension | Rescued a captive Derelict 7669 | -6/Extension | Rescued a captive Derelict 7672 | -6/Extension | Rescued A7 7848 | -6/Extension | Build established: Scavenger-Gunner 7954 | -6/Extension | Found Powered Armor 8045 | -6/Extension | Discovered exit to Factory (range 10) 8047 | -6/Extension | Discovered new exit (range 6) 8093 | -6/Extension | Entered Cetus 8093 | -6/Cetus | Accompanied by 10 allies (A7) 8098 | -6/Cetus | Acquired a Cetus Manufacturing Module code from A7 8115 | -6/Cetus | Spotted Cetus Guard 8115 | -6/Cetus | Spotted Cetus Guard 8117 | -6/Cetus | Spotted Cetus Guard 8117 | -6/Cetus | Spotted Cetus Guard 8122 | -6/Cetus | Allies destroyed Cetus Guard 8128 | -6/Cetus | Destroyed Cetus Guard 8129 | -6/Cetus | Allies destroyed Cetus Guard 8130 | -6/Cetus | Allies destroyed Cetus Guard 8259 | -6/Cetus | Started Cetus Manufacturing Module 8284 | -6/Cetus | Manufactured an Enhanced Grunt 8309 | -6/Cetus | Manufactured an Enhanced Grunt 8334 | -6/Cetus | Manufactured an Enhanced Grunt 8359 | -6/Cetus | Manufactured an Enhanced Grunt 8384 | -6/Cetus | Manufactured an Enhanced Grunt 8450 | -6/Cetus | Discovered new exit (range 16) 8482 | -6/Cetus | Spotted Cetus Guard 8482 | -6/Cetus | Spotted Cetus Guard 8484 | -6/Cetus | Spotted Cetus Guard 8485 | -6/Cetus | Spotted Cetus Guard 8491 | -6/Cetus | Allies destroyed Cetus Guard 8496 | -6/Cetus | Allies destroyed Cetus Guard 8501 | -6/Cetus | Allies destroyed Cetus Guard 8503 | -6/Cetus | Allies destroyed Cetus Guard 8526 | -6/Cetus | Discovered exit to Factory (range 16) 8534 | -6/Cetus | Met Revision 17 8633 | -6/Cetus | Botcube activated 8651 | -6/Cetus | Botcube completed mutation into treaded form, armed with 2 guns. 8706 | -6/Cetus | Entered Archives 8706 | -6/Archives | Accompanied by 13 allies (A7) 8784 | -6/Archives | Discovered new exit (range 16) 8819 | -6/Archives | Entered Hub_04(d) 8819 | -6/Hub_04(d) | Accompanied by 12 allies 8915 | -6/Hub_04(d) | Build established: Commander-Tank 8940 | -6/Hub_04(d) | Core integrity fell below 20% 8959 | -6/Hub_04(d) | Discovered exit to Factory (range 11) 9116 | -6/Hub_04(d) | Discovered exit to Factory (range 9) 9158 | -6/Hub_04(d) | Lost 3 allies 9165 | -6/Hub_04(d) | Network Hub disabled 9169 | -6/Hub_04(d) | First assault squad dispatched 9178 | -6/Hub_04(d) | Spotted Lightning 9206 | -6/Hub_04(d) | Found Prototype Device 9210 | -6/Hub_04(d) | Allies destroyed Lightning 9221 | -6/Hub_04(d) | Lost 3 allies 9264 | -6/Hub_04(d) | Lost 3 allies 9307 | -6/Hub_04(d) | Spotted Lightning 9311 | -6/Hub_04(d) | Spotted Lightning 9314 | -6/Hub_04(d) | Spotted Lightning 9320 | -6/Hub_04(d) | Destroyed Lightning 9323 | -6/Hub_04(d) | System corruption reached 10% 9340 | -6/Hub_04(d) | Destroyed Lightning 9349 | -6/Hub_04(d) | Destroyed Lightning 9361 | -6/Hub_04(d) | High security lockdown imminent 9382 | -6/Hub_04(d) | Found Prototype Energy Cannon 9386 | -6/Hub_04(d) | Found Prototype Device 9397 | -6/Hub_04(d) | Network Hub disabled 9397 | -6/Hub_04(d) | Discovered exit to Factory (range 12) 9424 | -6/Hub_04(d) | Build established: Scavenger-Tank 9430 | -6/Hub_04(d) | Garrison activated, responded to threat 9441 | -6/Hub_04(d) | High security lockdown engaged 9443 | -6/Hub_04(d) | Entered Factory 9443 | -5/Factory | Evolved 2 slots: Power x1, Utility x1 9445 | -5/Factory | Identified EMDS 9455 | -5/Factory | Identified Exp. Thermal Shield 9481 | -5/Factory | Identified Exp. Phase Shifter 9688 | -5/Factory | Spotted B-75 Beast 9716 | -5/Factory | Destroyed B-75 Beast 9743 | -5/Factory | First assault squad dispatched 10284 | -5/Factory | Lost 7 parts (1p1n2u3w) 10355 | -5/Factory | High security lockdown imminent 10435 | -5/Factory | High security lockdown engaged 10485 | -5/Factory | Cargo convoy interrupted 10510 | -5/Factory | Destroyed 10 combat bots 10518 | -5/Factory | System corruption reached 10% 10522 | -5/Factory | Released all parts (6) 10523 | -5/Factory | Core integrity fell below 50% 10533 | -5/Factory | Core integrity fell below 20% 10552 | -5/Factory | Lost 15 parts (3p3n5u4w) 10554 | -5/Factory | Destroyed by P-70 Sage with High-powered Shock Rifle Last Messages --------------- Slug penetrates B-60 Warrior. System corrupted: Substantial component data lost. Slug penetrates Manufacturing Mainframe. P-70 Sage resets I-47 Archangel, system corruption cleaned. C-30 ARC bursts open, deploying its payload. G-67 Veteran unfolds itself. G-50 Soldier unfolds itself. B-60 Warrior unfolds itself. G-50 Soldier unfolds itself. I-47 Archangel unfolds itself. Slug penetrates Wall. Critical hit (Burn: +37). EMDS Slug penetrates S-27 Virus. Destroyed VTOL Module. S-27 Virus destroyed. EMDS Slug penetrates Wall. System corrupted: Quantum Reactor rejected. EMDS destroyed. Map ----- +----------------------------------------------------+ | / ^ #???# "" ##?# """T""" " """ "" | | // ##### """#??########### | | // !! # S"#????## """ "" | | / ^ ! # """#????# """ "" | | ^ + """#????#T """ "" | | "T"" # #????## | | [ """"" # #?????# | | # #?????# " ### | | ###+############ "%" #?? | | %= ^ " #?? | | *! ^ #?? | | ^ ### | | %% ^ # | | p* ^ # | | ##""#"# x%###+############ # " | | # pss# ?????????# # | | # s # ???????# # " | | # # ?????# #"% | | # # """""" #????# " " | | # # """""" #????# # " | | # # """""" #????# + " | | # # """""" #????####### " | | ####### # ???? #??????????# | | ##???????????????????# | | #????????????????????#! | | @#????????????????????### | | " #??????????????????????? | | " #??????????????????????? | | ################ #??????????????????????? | | #? #?????# #??????????????????????? | | #? #?????# ??????????????????????? | | # #?????# ??????????????????????? | | # #?????# ??????????????????????? | | + #?????# ??????????????????????? | | # #?????# ??????????????????????? | | # #?????#######??????????????????????? | | #? #??????????????????????????????????? | | #? #??????????????????????????????????? | | #??#######??????????????????????????????????? | | #???????????????????????????????????????????? | | #???????????????????????????????????????????? | | #???????????????????????????????????????????? | | #???????????????????????????????????????????? | | #???????????????????????????????????????????? | | #???????????????????????????????????????????? | | #???????????????????????????????????????????? | | #???????????????????????????????????????????? | | #???????????????????????????????????????????? | | [ #???????????????????????????????????????????? | | #"#######????????????????????????????????????????? | +----------------------------------------------------+ Best States ------------- Heat Dissipation 113 Energy Generation 31 Energy Capacity 1150 Matter Stores 300 Matter Capacity 300 Sight Range 16 Terrain Scan Range 30 Terrain Scan Density 1210 Base Temperature (-) 150 Armor Coverage 1700 Resistance: KI 40 Resistance: TH 30 Resistance: EM 15 Weapon Cycling 20 Melee Speed Boost 20 Phase Shifting 20 Evasion (%) 60 Targeting Accuracy 12 Melee Accuracy 5 Recoil Reduction 3 Authchip Count 2 Item Schematics ----------------- Arm. Wheel | -9/Materials | Scanalyzed Imp. Light Armor Plating | -9/Materials | Scanalyzed Deuterium Engine | -9/Materials | Scanalyzed Mni. Grenade Launcher | -9/Materials | Scanalyzed Scythe | -9/Materials | Scanalyzed Lrg. Storage Unit | -9/Materials | Extracted Imp. Heat Sink | -9/Storage | Hacked Adv. Targeting Computer | -9/Storage | Hacked Cooling System | -9/Storage | Hacked Imp. Shield Generator | -9/Recycling | Hacked CPS Tube | -6/Factory | Scanalyzed Imp. System Restoration Module | -6/Extension | Hacked Adv. Coolant Injector | -5/Factory | Hacked Imp. Medium Treads | -5/Factory | Scanalyzed Robot Schematics ------------------ L-31 Rogue | -9/Recycling | Hacked Fabricated ------------ Nothing Alien Tech Used ----------------- None Achievements -------------- None Challenges ------------ None Game ------ Seed VisualRegenerativeStabilizer Manual? 0 Play Time 02:50:39 Cumulative 197.8 hours Start 2024.09.08 @ 04:32:04 End 2024.09.08 @ 09:15:20 Sessions 3 Manual Loads 0 Difficulty Rogue Special Mode None Game No. 167 Rogue 158 Adventurer 9 Explorer 0 Win Type - Total 0 Types 0/0/0/0/0/0/0/0/0 Lore% 69 Gallery% 69 Achievement% 55 Wizard Run 0 Options --------- Layout 1 ASCII 0 Keyboard 0 Movement Numpad Keybinds 0 Fullscreen 1 Font 24/Smallcaps Map View 50x35 Zoom Use 0% Tactical HUD 0 Map Filters NONE Filters NONE Steam 1 RUN: f171d393-9731-4b0d-8385-33fd917f1b2f